fUST/lending_fUST_20240619
["ID","MTS","AMOUNT","RATE_DAILY","PERIOD"]
[329842888,1718740245681,-675.22,0.00017534,2]
[329842889,1718740245690,-500.0,0.00017534,2]
[329842890,1718740245703,-500.0,0.00017534,2]
[329842891,1718740245713,-500.0,0.00017534,2]
[329842892,1718740245722,-80.37169936,0.00017534,2]
[329842893,1718740245847,-500.0,0.00016438,2]
[329842894,1718740245856,-500.0,0.00016712,2]
[329842895,1718740245866,-373.60129679,0.00016986,2]
[329842896,1718740245878,-126.39870321,0.00016986,2]
[329842899,1718740245888,-419.62830064,0.00017534,2]
[329842902,1718740245898,-507.6,0.00017687,2]
[329842905,1718740245907,-500.0,0.00017806,2]
[329842908,1718740245917,-500.0,0.00017807,2]
[329842911,1718740245926,-4878.14,0.00017807,2]
[329842914,1718740245936,-443.81738477,0.00017808,13]
[329842917,1718740245946,-500.0,0.00017808,2]
[329842920,1718740245955,-500.0,0.00017808,2]
[329842922,1718740245965,-151.0,0.00017808,2]
[329842924,1718740245975,-500.0,0.00017808,2]
[329842926,1718740245984,-500.0,0.00017808,2]
[329842928,1718740245994,-500.0,0.00017808,2]
[329842931,1718740246008,-500.0,0.00017808,2]
[329842934,1718740246017,-500.0,0.00017808,2]
[329842937,1718740246027,-2883.07,0.00017808,2]
[329842941,1718740246036,-500.0,0.00017808,2]
[329842944,1718740246046,-8253.16,0.00017808,2]
[329842948,1718740246055,-187.85682,0.00017808,2]
[329842951,1718740246065,-500.0,0.00017808,2]
[329842954,1718740246075,-500.0,0.00017808,2]
[329842957,1718740246085,-500.0,0.00017808,2]
[329842958,1718740246095,-500.0,0.00017808,2]
[329842963,1718740246108,-500.0,0.00017808,2]
[329842966,1718740246118,-561.11,0.00017808,2]
[329842967,1718740246127,-500.0,0.00017808,2]
[329842971,1718740246138,-1041.06,0.00017808,2]
[329842973,1718740246147,-500.0,0.00017808,2]
[329842976,1718740246156,-1304.19,0.00017808,2]
[329842979,1718740246166,-500.0,0.00017808,2]
[329842982,1718740246176,-500.0,0.00017808,2]
[329842984,1718740246185,-500.0,0.00017808,2]
[329842986,1718740246194,-480.42300722,0.00017808,2]
[329842988,1718740246203,-500.0,0.00017808,2]
[329842990,1718740246212,-500.0,0.00017808,2]
[329842992,1718740246222,-1480.2,0.00017808,2]
[329842994,1718740246231,-500.0,0.00017808,2]
[329842996,1718740246240,-500.0,0.00017808,2]
[329842998,1718740246254,-500.0,0.00017808,2]
[329843000,1718740246263,-710.99,0.00017808,2]
[329843002,1718740246272,-500.0,0.00017808,2]
[329843004,1718740246282,-675.22,0.00017808,2]
[329843005,1718740246291,-157.14379273,0.00017808,2]
[329843006,1718740246301,-500.0,0.00017808,2]
[329843007,1718740246310,-500.0,0.00017808,2]
[329843008,1718740246319,-500.0,0.00017808,2]
[329843010,1718740246328,-420.0,0.00018077,2]
[329843012,1718740246338,-500.0,0.0001808,2]
[329843013,1718740246347,-151.0,0.00018081,2]
[329843015,1718740246357,-4878.14,0.00018081,2]
[329843017,1718740246366,-500.0,0.00018081,2]
[329843019,1718740246375,-500.0,0.00018082,2]
[329843020,1718740246385,-500.0,0.00018082,2]
[329843021,1718740246394,-500.0,0.00018082,2]
[329843022,1718740246405,-500.0,0.00018082,2]
[329843023,1718740246414,-349.5,0.00018082,2]
[329843024,1718740246423,-2883.07,0.00018082,2]
[329843025,1718740246433,-500.0,0.00018082,2]
[329843026,1718740246444,-8253.16,0.00018082,2]
[329843027,1718740246454,-457.74,0.00018082,2]
[329843028,1718740246463,-500.0,0.00018082,2]
[329843029,1718740246473,-500.0,0.00018082,2]
[329843030,1718740246483,-561.11,0.00018082,2]
[329843032,1718740246492,-500.0,0.00018082,2]
[329843034,1718740246503,-1041.06,0.00018082,2]
[329843035,1718740246513,-500.0,0.00018082,2]
[329843036,1718740246522,-1304.19,0.00018082,2]
[329843037,1718740246532,-500.0,0.00018082,2]
[329843038,1718740246542,-500.0,0.00018082,2]
[329843039,1718740246551,-500.0,0.00018082,2]
[329843040,1718740246560,-500.0,0.00018082,2]
[329843041,1718740246569,-1480.2,0.00018082,2]
[329843043,1718740246579,-240.14,0.00018082,2]
[329843045,1718740246589,-382.72455715,0.00018082,2]
[329843047,1718740246599,-710.99,0.00018082,2]
[329843049,1718740246608,-675.22,0.00018082,2]
[329843050,1718740246618,-500.0,0.00018082,2]
[329843052,1718740246627,-500.0,0.00018082,2]
[329843053,1718740246637,-507.6,0.00018333,2]
[329843055,1718740246646,-151.0,0.00018355,2]
[329843057,1718740246656,-3683.98157203,0.00018355,2]
[329843059,1718740246754,-1194.15842797,0.00018355,2]
[329843060,1718740246763,-500.0,0.00018355,2]
[329843061,1718740246772,-311.38493881,0.00018356,2]
[329843062,1718740246784,-188.61506119,0.00018356,2]
[329843063,1718740246795,-447.58,0.00018356,2]
[329843064,1718740246806,-500.0,0.00018356,2]
[329843066,1718740246816,-2883.07,0.00018356,2]
[329843068,1718740246826,-8253.16,0.00018356,2]
[329843070,1718740246836,-603.875313,0.00018356,2]
[329843071,1718740246846,-500.0,0.00018356,2]
[329843072,1718740246855,-561.11,0.00018356,2]
[329843073,1718740246864,-218.5,0.00018356,2]
[329843074,1718740246874,-1041.06,0.00018356,2]
[329843075,1718740246884,-360.94,0.00018356,2]
[329843076,1718740246894,-1304.19,0.00018356,2]
[329843077,1718740246903,-379.61,0.00018356,2]
[329843078,1718740246913,-500.0,0.00018356,2]
[329843079,1718740246922,-594.34,0.00018356,2]
[329843080,1718740246931,-1480.2,0.00018356,2]
[329843081,1718740246942,-710.99,0.00018356,2]
[329843082,1718740246952,-675.22,0.00018356,2]
[329843083,1718740246962,-500.0,0.00018356,2]
[329843084,1718740246971,-160.0,0.00018479,2]
[329843085,1718740246981,-384.73988964,0.00018629,2]
[329843086,1718740246991,-500.0,0.00018629,2]
[329843088,1718740247005,-4878.14,0.00018629,2]
[329843090,1718740247015,-500.0,0.00018629,2]
[329843091,1718740247117,-355.3,0.0001863,2]
[329843092,1718740247127,-500.0,0.0001863,2]
[329843093,1718740247136,-151.0,0.0001863,2]
[329843094,1718740247146,-2883.07,0.0001863,2]
[329843095,1718740247155,-8253.16,0.0001863,2]
[329843096,1718740247165,-500.0,0.0001863,2]
[329843097,1718740247175,-561.11,0.0001863,2]
[329843098,1718740247184,-1041.06,0.0001863,2]
[329843099,1718740247194,-1304.19,0.0001863,2]
[329843100,1718740247203,-618.16,0.0001863,2]
[329843101,1718740247214,-1480.2,0.0001863,2]
[329843102,1718740247223,-710.99,0.0001863,2]
[329843103,1718740247232,-675.22,0.0001863,2]
[329843104,1718740247242,-500.0,0.0001863,2]
[329843105,1718740247255,-500.0,0.00018902,2]
[329843106,1718740247264,-4878.14,0.00018903,2]
[329843107,1718740247273,-500.0,0.00018904,2]
[329843108,1718740247283,-2883.07,0.00018904,2]
[329843109,1718740247291,-8253.16,0.00018904,2]
[329843110,1718740247300,-500.0,0.00018904,2]
[329843111,1718740247310,-561.11,0.00018904,2]
[329843112,1718740247320,-1041.06,0.00018904,2]
[329843113,1718740247329,-1304.19,0.00018904,2]
[329843114,1718740247338,-1480.2,0.00018904,2]
[329843115,1718740247348,-710.99,0.00018904,2]
[329843116,1718740247358,-675.22,0.00018904,2]
[329843117,1718740247367,-500.0,0.00018904,2]
[329843118,1718740247377,-507.6,0.00018979,2]
[329843119,1718740247387,-810.06405385,0.00019,3]
[329843120,1718740247396,-331.078618,0.00019096,2]
[329843121,1718740247406,-153.0,0.00019128,2]
[329843122,1718740247415,-153.0,0.00019128,2]
[329843123,1718740247425,-153.0,0.00019129,2]
[329843124,1718740247435,-153.0,0.00019129,2]
[329843125,1718740247445,-153.0,0.00019129,2]
[329843126,1718740247455,-153.0,0.00019129,2]
[329843127,1718740247464,-506.48,0.00019177,2]
[329843128,1718740247474,-4878.14,0.00019177,2]
[329843129,1718740247484,-500.0,0.00019177,2]
[329843130,1718740247494,-500.0,0.00019178,2]
[329843131,1718740247509,-2883.07,0.00019178,2]
[329843132,1718740247519,-8253.16,0.00019178,2]
[329843133,1718740247528,-412.26,0.00019178,2]
[329843134,1718740247537,-561.11,0.00019178,2]
[329843135,1718740247546,-1041.06,0.00019178,2]
[329843136,1718740247555,-1304.19,0.00019178,2]
[329843137,1718740247565,-1480.2,0.00019178,2]
[329843138,1718740247574,-710.99,0.00019178,2]
[329843139,1718740247582,-675.22,0.00019178,2]
[329843140,1718740247592,-500.0,0.00019178,2]
[329843141,1718740247603,-600.0,0.000192,2]
[329843142,1718740247612,-600.0,0.000194,2]
[329843143,1718740247622,-500.0,0.0001945,2]
[329843144,1718740247633,-4878.14,0.00019451,2]
[329843145,1718740247643,-601.30537652,0.00019452,2]
[329843146,1718740247653,-2883.07,0.00019452,2]
[329843147,1718740247663,-8253.16,0.00019452,2]
[329843148,1718740247673,-561.11,0.00019452,2]
[329843149,1718740247682,-1041.06,0.00019452,2]
[329843150,1718740247692,-1304.19,0.00019452,2]
[329843151,1718740247706,-1480.2,0.00019452,2]
[329843152,1718740247716,-710.99,0.00019452,2]
[329843153,1718740247726,-675.22,0.00019452,2]
[329843154,1718740247736,-637.82,0.00019452,2]
[329843155,1718740247748,-225.503812,0.00019459,2]
[329843156,1718740247758,-500.0,0.0001946,2]
[329843157,1718740247767,-1750.0,0.0001946,2]
[329843158,1718740247777,-5271.96670823,0.00019496,2]
[329843159,1718740247788,-507.6,0.00019625,2]
[329843160,1718740247798,-256.96558694,0.00019724,2]
[329843161,1718740247808,-164.5734904,0.00019724,2]
[329843162,1718740247818,-319.5,0.00019724,2]
[329843163,1718740247827,-500.0,0.00019724,2]
[329843164,1718740247837,-729.0,0.00019724,2]
[329843165,1718740247847,-273.019268,0.00019725,2]
[329843166,1718740247857,-4878.14,0.00019725,2]
[329843167,1718740247866,-2883.07,0.00019726,2]
[329843168,1718740247876,-6482.35712255,0.00019726,2]
[329843169,1718740247890,-1770.80287745,0.00019726,2]
[329843170,1718740247899,-561.11,0.00019726,2]
[329843171,1718740247909,-692.94913995,0.00019726,2]
[329843172,1718740247921,-348.11086005,0.00019726,2]
[329843173,1718740247931,-1304.19,0.00019726,2]
[329843174,1718740247941,-1480.2,0.00019726,2]
[329843175,1718740247951,-710.99,0.00019726,2]
[329843176,1718740247962,-675.22,0.00019726,2]
[329843177,1718740247972,-500.0,0.00019984,2]
[329843178,1718740247982,-53898.26608231,0.00019985,2]
[329843179,1718740247991,-4878.14,0.00019999,2]
[329843180,1718740248003,-8423.95780926,0.0002,2]
[329843181,1718740248020,-14235.6,0.0002,2]
[329843182,1718740248095,-500.0,0.00016438,2]
[329843183,1718740248104,-141.75,0.0002,2]
[329843184,1718740248117,-432.4407645,0.0002,2]
[329843185,1718740248134,-2902.6938867,0.0002,2]
[329843186,1718740248272,-151.0,0.0001726,2]
[329843187,1718740248281,-229.315407,0.00017808,2]
[329843188,1718740248291,-2036.95462571,0.0002,2]
[329843189,1718740248302,-18653.97500263,0.0002,2]
[329843190,1718740248314,-32095.0,0.0002,2]
[329843191,1718740248326,-21623.70668609,0.0002,2]
[329843192,1718740248336,-292.71417926,0.0002,2]
[329843193,1718740248346,-32833.57913465,0.0002,2]
[329843194,1718740248358,-9377.54723968,0.0002,2]
[329843195,1718740248397,-2997.5,0.0002,2]
[329843196,1718740331584,154.82968734,9.999e-05,2]
[329843197,1718740497915,157.07058431,9.999e-05,2]
[329843199,1718740889459,3025.76,0.000141,2]
[329843200,1718741140560,157.07058431,9.999e-05,2]
[329843201,1718741144257,159.22422045,9.999e-05,2]
[329843202,1718741151107,-457.96154041,0.00014999,2]
[329843204,1718741240086,-1455.08386579,0.00014999,2]
[329843205,1718741240107,-286.87043309,0.00015,2]
[329843206,1718741240130,-155.02635479,0.00015,2]
[329843207,1718741240158,-2159.48109615,0.00015333,2]
[329843208,1718741242104,-2296.89571175,0.00015333,2]
[329843209,1718741242129,-300.0,0.00015999,2]
[329843210,1718741242154,-300.0,0.00015999,2]
[329843211,1718741242173,-1000.0,0.00016,2]
[329843212,1718741242192,-1188.94247779,0.00016329,2]
[329843213,1718741249307,-167.67728277,0.00016329,2]
[329843214,1718741249328,-208.35017524,0.0001633,4]
[329843215,1718741301555,-335.926238,0.00015,2]
[329843216,1718741345072,-37.82958597,0.00015,2]
[329843217,1718741345096,-250.0,0.00015333,2]
[329843218,1718741348119,-891.64251561,0.00016238,2]
[329843219,1718741422366,201.02191296,0.00015378,2]
[329843220,1718741422388,157.24816254,0.00015378,2]
[329843238,1718741433692,-2980.38746257,0.0001633,4]
[329843240,1718741433702,-300.0,0.00016331,2]
[329843241,1718741433712,-1432.16283222,0.00016332,2]
[329843243,1718741433721,-774.88030963,0.00016332,2]
[329843245,1718741433730,-495.10030246,0.00016332,2]
[329843246,1718741433740,-946.56236145,0.00016332,2]
[329843248,1718741433749,-301.69233505,0.00016332,2]
[329843250,1718741433759,-203.21620409,0.00016332,2]
[329843251,1718741433768,-166.54778546,0.00016332,2]
[329843253,1718741433780,-176.16748584,0.00016332,2]
[329843255,1718741433789,-164.55415218,0.00016333,2]
[329843256,1718741433799,-1692.33793104,0.00016333,2]
[329843258,1718741433808,-16708.1504288,0.00016334,2]
[329843495,1718741439031,-2244.58768091,0.00016334,2]
[329843498,1718741439041,-269.79081881,0.00016338,2]
[329843499,1718741439051,-182.21961827,0.00016435,2]
[329843501,1718741439061,-219.00720985,0.00016435,2]
[329843503,1718741439072,-154.82968734,0.00016436,2]
[329843506,1718741439082,-175.18934434,0.00016436,2]
[329843508,1718741439092,-216.14213589,0.00016436,2]
[329843510,1718741439102,-687.55415781,0.00016436,2]
[329843512,1718741439117,-12850.0009608,0.00016437,2]
[329843514,1718741439126,-500.0,0.00016438,2]
[329843516,1718741439136,-500.0,0.00016438,2]
[329843518,1718741439146,-390.23335352,0.00016438,2]
[329843521,1718741439156,-500.0,0.00016438,2]
[329843522,1718741439167,-500.0,0.00016438,2]
[329843524,1718741439177,-500.0,0.00016438,2]
[329843525,1718741439187,-388.3,0.00016438,2]
[329843526,1718741439198,-500.0,0.00016438,2]
[329843528,1718741439209,-500.0,0.00016438,2]
[329843530,1718741439219,-291.47323671,0.00016438,2]
[329843532,1718741439230,-500.0,0.00016438,2]
[329843534,1718741439240,-500.0,0.00016438,2]
[329843536,1718741439249,-500.0,0.00016438,2]
[329843538,1718741439258,-500.0,0.00016438,2]
[329843540,1718741439268,-173.69033743,0.00016438,2]
[329843542,1718741439280,-500.0,0.00016438,2]
[329843544,1718741439290,-439.65452609,0.00016438,2]
[329843546,1718741439300,-500.0,0.00016438,2]
[329843548,1718741439310,-500.0,0.00016438,2]
[329843550,1718741439320,-500.0,0.00016438,2]
[329843552,1718741439330,-500.0,0.00016438,2]
[329843554,1718741439340,-500.0,0.00016438,2]
[329843555,1718741439350,-500.0,0.00016438,2]
[329843556,1718741439360,-500.0,0.00016438,2]
[329843557,1718741439370,-500.0,0.00016438,2]
[329843558,1718741439380,-500.0,0.00016438,2]
[329843559,1718741439391,-500.0,0.00016438,2]
[329843560,1718741439401,-500.0,0.00016438,2]
[329843561,1718741439411,-500.0,0.00016438,2]
[329843562,1718741439421,-500.0,0.00016438,2]
[329843563,1718741439431,-358.46313678,0.00016438,2]
[329843564,1718741439444,-141.53686322,0.00016438,2]
[329843565,1718741439454,-500.0,0.00016438,2]
[329843566,1718741439463,-500.0,0.00016438,2]
[329843567,1718741439473,-500.0,0.00016438,2]
[329843568,1718741439483,-500.0,0.00016438,2]
[329843569,1718741439493,-500.0,0.00016438,2]
[329843570,1718741439503,-500.0,0.00016438,2]
[329843571,1718741439512,-500.0,0.00016438,2]
[329843572,1718741439524,-500.0,0.00016438,2]
[329843573,1718741439538,-632.75403515,0.00016438,2]
[329843574,1718741439547,-500.0,0.00016438,2]
[329843575,1718741439556,-500.0,0.00016438,2]
[329843576,1718741439566,-423.06029683,0.00016438,2]
[329843577,1718741439575,-382.12203268,0.00016438,2]
[329843578,1718741439585,-500.0,0.00016438,2]
[329843579,1718741439594,-500.0,0.00016438,2]
[329843580,1718741439603,-500.0,0.00016438,2]
[329843581,1718741439613,-500.0,0.00016438,2]
[329843582,1718741439622,-500.0,0.00016438,2]
[329843583,1718741439632,-500.0,0.00016438,2]
[329843584,1718741439642,-500.0,0.00016438,2]
[329843585,1718741439652,-500.0,0.00016438,2]
[329843586,1718741439662,-483.34614025,0.00016438,2]
[329843587,1718741439671,-500.0,0.00016438,2]
[329843588,1718741439680,-500.0,0.00016438,2]
[329843589,1718741439690,-500.0,0.00016438,2]
[329843590,1718741439699,-500.0,0.00016438,2]
[329843591,1718741439709,-500.0,0.00016438,2]
[329843592,1718741439718,-500.0,0.00016438,2]
[329843593,1718741439728,-500.0,0.00016438,2]
[329843594,1718741439738,-500.0,0.00016438,2]
[329843595,1718741439747,-326.5893206,0.00016438,2]
[329843596,1718741439756,-500.0,0.00016438,2]
[329843597,1718741439766,-500.0,0.00016438,2]
[329843598,1718741439775,-500.0,0.00016438,2]
[329843599,1718741439787,-500.0,0.00016438,2]
[329843600,1718741439796,-500.0,0.00016438,2]
[329843601,1718741439805,-496.62831701,0.00016438,2]
[329843602,1718741439815,-299.36014159,0.00016438,2]
[329843603,1718741439825,-500.0,0.00016438,2]
[329843604,1718741439834,-500.0,0.00016438,2]
[329843605,1718741439843,-343.51903024,0.00016438,2]
[329843606,1718741439853,-500.0,0.00016438,2]
[329843607,1718741439863,-500.0,0.00016438,2]
[329843608,1718741439873,-882.32,0.00016438,2]
[329843609,1718741439886,-3774.58,0.00016438,2]
[329843610,1718741439898,-500.0,0.00016438,2]
[329843611,1718741439908,-500.0,0.00016438,2]
[329843612,1718741439919,-500.0,0.00016438,2]
[329843613,1718741439929,-500.0,0.00016438,2]
[329843614,1718741439939,-500.0,0.00016438,2]
[329843615,1718741439949,-500.0,0.00016438,2]
[329843616,1718741439959,-202.59425581,0.00016438,2]
[329843617,1718741439970,-500.0,0.00016438,2]
[329843618,1718741439980,-379.06308098,0.00016438,2]
[329843619,1718741439990,-500.0,0.00016438,2]
[329843620,1718741440000,-500.0,0.00016438,2]
[329843621,1718741440010,-8763.3,0.00016438,2]
[329843622,1718741440019,-500.0,0.00016438,2]
[329843623,1718741440030,-500.0,0.00016438,2]
[329843624,1718741440039,-500.0,0.00016438,2]
[329843625,1718741440049,-508.38182415,0.00016438,2]
[329843626,1718741440059,-500.0,0.00016438,2]
[329843627,1718741440068,-727.76,0.00016438,2]
[329843628,1718741440078,-500.0,0.00016438,2]
[329843629,1718741440197,-500.0,0.00016438,2]
[329843630,1718741440207,-545.34681441,0.00016438,2]
[329843631,1718741440216,-500.0,0.00016438,2]
[329843632,1718741440225,-500.0,0.00016438,2]
[329843633,1718741440234,-250.0,0.00016438,2]
[329843634,1718741440244,-1316.69,0.00016438,2]
[329843635,1718741440253,-500.0,0.00016438,2]
[329843636,1718741440263,-500.0,0.00016438,2]
[329843637,1718741440272,-257.56898702,0.00016438,2]
[329843638,1718741440376,-1151.04962128,0.00016438,2]
[329843639,1718741440388,-308.0513917,0.00016438,2]
[329843640,1718741440398,-195.73704327,0.00016438,2]
[329843641,1718741440407,-500.0,0.00016438,2]
[329843642,1718741440416,-361.25092803,0.00016438,2]
[329843643,1718741440425,-500.0,0.00016438,2]
[329843644,1718741440434,-500.0,0.00016438,2]
[329843645,1718741440443,-500.0,0.00016438,2]
[329843646,1718741440452,-500.0,0.00016438,2]
[329843647,1718741440461,-625.903157,0.00016438,2]
[329843648,1718741440471,-500.0,0.00016438,2]
[329843649,1718741440480,-500.0,0.00016438,2]
[329843650,1718741440489,-236.82753502,0.00016438,2]
[329843651,1718741440500,-263.17246498,0.00016438,2]
[329843652,1718741440509,-500.0,0.00016438,2]
[329843653,1718741440518,-502.89806245,0.00016438,2]
[329843654,1718741440527,-500.0,0.00016438,2]
[329843655,1718741440538,-500.0,0.00016438,2]
[329843656,1718741440548,-307.98155194,0.00016438,2]
[329843657,1718741440560,-192.01844806,0.00016438,2]
[329843658,1718741440569,-500.0,0.00016438,2]
[329843659,1718741440578,-500.0,0.00016438,2]
[329843660,1718741440586,-178.37014474,0.00016438,2]
[329843661,1718741440597,-258.12856557,0.00016438,2]
[329843662,1718741440607,-500.0,0.00016438,2]
[329843663,1718741440616,-500.0,0.00016438,2]
[329843664,1718741440625,-500.0,0.00016438,2]
[329843665,1718741440634,-26.62701848,0.00016438,2]
[329843666,1718741440682,6444.84611332,0.00016234,2]
[329843739,1718741443738,-152.1322124,0.00016234,2]
[329843740,1718741443748,-473.37298152,0.00016438,2]
[329843741,1718741443764,-500.0,0.00016438,2]
[329843742,1718741443780,-500.0,0.00016438,2]
[329843744,1718741443802,-74.47313405,0.00016438,2]
[329843746,1718741443820,-425.52686595,0.00016438,2]
[329843748,1718741443830,-500.0,0.00016438,2]
[329843749,1718741443839,-969.2278599,0.00016438,2]
[329843774,1718741446812,-1163.5521401,0.00016438,2]
[329843775,1718741446821,-500.0,0.00016438,2]
[329843776,1718741446830,-500.0,0.00016438,2]
[329843777,1718741446840,-500.0,0.00016438,2]
[329843778,1718741446850,-500.0,0.00016438,2]
[329843779,1718741446859,-264.43433622,0.00016438,2]
[329843780,1718741446869,-500.0,0.00016438,2]
[329843781,1718741446878,-500.0,0.00016438,2]
[329843782,1718741446887,-500.0,0.00016438,2]
[329843783,1718741446896,-500.0,0.00016438,2]
[329843784,1718741446906,-853.66,0.00016438,2]
[329843785,1718741446915,-500.0,0.00016438,2]
[329843786,1718741446924,-500.0,0.00016438,2]
[329843787,1718741446934,-500.0,0.00016438,2]
[329843788,1718741446943,-500.0,0.00016438,2]
[329843789,1718741446952,-500.0,0.00016438,2]
[329843790,1718741446962,-500.0,0.00016438,2]
[329843791,1718741446971,-500.0,0.00016438,2]
[329843792,1718741446981,-500.0,0.00016438,2]
[329843793,1718741446990,-500.0,0.00016438,2]
[329843794,1718741447000,-500.0,0.00016438,2]
[329843795,1718741447009,-500.0,0.00016438,2]
[329843796,1718741447019,-3617.31,0.00016438,2]
[329843797,1718741447030,-845.56,0.00016438,2]
[329843798,1718741447050,-7867.2791345,0.00016438,2]
[329843799,1718741447060,-269.79081881,0.00016544,2]
[329843800,1718741447070,-500.0,0.0001671,2]
[329843801,1718741447081,-500.0,0.00016711,2]
[329843802,1718741447092,-500.0,0.00016711,2]
[329843803,1718741447103,-500.0,0.00016711,2]
[329843804,1718741447118,-3080.86089269,0.00016712,15]
[329843805,1718741447128,-500.0,0.00016712,2]
[329843806,1718741447138,-500.0,0.00016712,2]
[329843807,1718741447147,-500.0,0.00016712,2]
[329843808,1718741447157,-500.0,0.00016712,2]
[329843809,1718741447167,-500.0,0.00016712,2]
[329843810,1718741447176,-500.0,0.00016712,2]
[329843811,1718741447186,-570.57228022,0.00016712,2]
[329843812,1718741447196,-500.0,0.00016712,2]
[329843813,1718741447206,-500.0,0.00016712,2]
[329843814,1718741447216,-500.0,0.00016712,2]
[329843815,1718741447226,-500.0,0.00016712,2]
[329843816,1718741447235,-500.0,0.00016712,2]
[329843817,1718741447244,-500.0,0.00016712,2]
[329843818,1718741447254,-500.0,0.00016712,2]
[329843819,1718741447263,-500.0,0.00016712,2]
[329843820,1718741447272,-500.0,0.00016712,2]
[329843821,1718741447282,-500.0,0.00016712,2]
[329843822,1718741447295,-500.0,0.00016712,2]
[329843823,1718741447305,-500.0,0.00016712,2]
[329843824,1718741447315,-500.0,0.00016712,2]
[329843825,1718741447325,-500.0,0.00016712,2]
[329843826,1718741447334,-500.0,0.00016712,2]
[329843827,1718741447344,-500.0,0.00016712,2]
[329843828,1718741447353,-500.0,0.00016712,2]
[329843829,1718741447364,-500.0,0.00016712,2]
[329843830,1718741447374,-195.35795499,0.00016712,2]
[329843831,1718741447383,-500.0,0.00016712,2]
[329843832,1718741447393,-500.0,0.00016712,2]
[329843833,1718741447402,-500.0,0.00016712,2]
[329843834,1718741447412,-500.0,0.00016712,2]
[329843835,1718741447422,-500.0,0.00016712,2]
[329843836,1718741447431,-500.0,0.00016712,2]
[329843837,1718741447441,-500.0,0.00016712,2]
[329843838,1718741447451,-500.0,0.00016712,2]
[329843839,1718741447461,-500.0,0.00016712,2]
[329843840,1718741447470,-500.0,0.00016712,2]
[329843841,1718741447479,-500.0,0.00016712,2]
[329843842,1718741447489,-500.0,0.00016712,2]
[329843843,1718741447499,-500.0,0.00016712,2]
[329843844,1718741447508,-500.0,0.00016712,2]
[329843845,1718741447517,-500.0,0.00016712,2]
[329843846,1718741447527,-500.0,0.00016712,2]
[329843847,1718741447538,-8763.3,0.00016712,2]
[329843848,1718741447548,-500.0,0.00016712,2]
[329843849,1718741447557,-500.0,0.00016712,2]
[329843850,1718741447567,-500.0,0.00016712,2]
[329843851,1718741447576,-727.76,0.00016712,2]
[329843852,1718741447586,-445.18624232,0.00016712,2]
[329843853,1718741447596,-500.0,0.00016712,2]
[329843854,1718741447605,-500.0,0.00016712,2]
[329843855,1718741447614,-500.0,0.00016712,2]
[329843856,1718741447624,-250.0,0.00016712,2]
[329843857,1718741447634,-1316.69,0.00016712,2]
[329843858,1718741447643,-500.0,0.00016712,2]
[329843859,1718741447653,-505.92399926,0.00016712,2]
[329843860,1718741447662,-1716.67,0.00016712,2]
[329843861,1718741447671,-500.0,0.00016712,2]
[329843862,1718741447680,-500.0,0.00016712,2]
[329843863,1718741447688,-500.0,0.00016712,2]
[329843864,1718741447698,-500.0,0.00016712,2]
[329843865,1718741447707,-500.0,0.00016712,2]